fUSD/lending_fUSD_20250820
["ID","MTS","AMOUNT","RATE_DAILY","PERIOD"]
[380309398,1755652254014,-151.0,0.00016438,2]
[380309399,1755652254025,-151.0,0.00016438,2]
[380309400,1755652254034,-157.533592,0.00016438,2]
[380309401,1755652254043,-191.423987,0.00016438,2]
[380309402,1755652254052,-191.423987,0.00016438,2]
[380309403,1755652254062,-581.414983,0.00016438,2]
[380309404,1755652254071,-151.0,0.00016438,2]
[380309405,1755652254081,-581.414983,0.00016438,2]
[380309406,1755652254090,-151.0,0.00016438,2]
[380309407,1755652254101,-151.0,0.00016438,2]
[380309408,1755652254111,-974.669374,0.00016438,2]
[380309409,1755652254120,-581.414983,0.00016438,2]
[380309410,1755652254130,-151.0,0.00016438,2]
[380309411,1755652254139,-151.0,0.00016438,2]
[380309412,1755652254149,-355.583913,0.00016438,2]
[380309413,1755652254158,-974.669374,0.00016438,2]
[380309414,1755652254167,-151.0,0.00016438,2]
[380309415,1755652254177,-581.414983,0.00016438,2]
[380309416,1755652254187,-355.583913,0.00016438,2]
[380309417,1755652254196,-974.669374,0.00016438,2]
[380309418,1755652254206,-151.0,0.00016438,2]
[380309419,1755652254215,-974.669374,0.00016438,2]
[380309420,1755652254225,-355.583913,0.00016438,2]
[380309421,1755652254234,-151.0,0.00016438,2]
[380309422,1755652254244,-151.0,0.00016438,2]
[380309423,1755652254257,-151.0,0.00016438,2]
[380309424,1755652254267,-166.081221,0.00016438,2]
[380309425,1755652254278,-166.081221,0.00016438,2]
[380309426,1755652254287,-446.315392,0.00016438,2]
[380309427,1755652254298,-166.081221,0.00016438,2]
[380309428,1755652254308,-446.315392,0.00016438,2]
[380309429,1755652254317,-166.081221,0.00016438,2]
[380309430,1755652254327,-446.315392,0.00016438,2]
[380309431,1755652254345,-151.0,0.00016438,2]
[380309432,1755652254362,-446.315392,0.00016438,2]
[380309433,1755652254380,-151.0,0.00016438,2]
[380309434,1755652254401,-151.0,0.00016438,2]
[380309435,1755652254417,-209.070031,0.00016438,2]
[380309436,1755652254435,-151.0,0.00016438,2]
[380309437,1755652254454,-151.0,0.00016438,2]
[380309438,1755652254474,-617.46186,0.00016438,2]
[380309439,1755652254493,-617.46186,0.00016438,2]
[380309440,1755652254511,-388.577591,0.00016438,2]
[380309441,1755652254532,-617.46186,0.00016438,2]
[380309442,1755652254547,-388.577591,0.00016438,2]
[380309443,1755652254567,-151.0,0.00016438,2]
[380309444,1755652254580,-388.577591,0.00016438,2]
[380309445,1755652254599,-617.46186,0.00016438,2]
[380309446,1755652254612,-151.0,0.00016438,2]
[380309447,1755652254629,-151.0,0.00016438,2]
[380309448,1755652254646,-151.0,0.00016438,2]
[380309449,1755652254663,-151.0,0.00016438,2]
[380309450,1755652254679,-1150.543606,0.00016438,2]
[380309451,1755652254695,-404.847502,0.00016438,2]
[380309452,1755652254710,-1156.606502,0.00016438,2]
[380309453,1755652254727,-388.577591,0.00016438,2]
[380309454,1755652254742,-298.621859,0.00016438,2]
[380309455,1755652254757,-1156.606502,0.00016438,2]
[380309456,1755652254774,-1150.543606,0.00016438,2]
[380309457,1755652254788,-404.847502,0.00016438,2]
[380309458,1755652254803,-298.621859,0.00016438,2]
[380309459,1755652254819,-151.0,0.00016438,2]
[380309460,1755652254834,-1156.606502,0.00016438,2]
[380309461,1755652254849,-173.770596,0.00016438,2]
[380309462,1755652254865,-1150.543606,0.00016438,2]
[380309463,1755652254881,-298.621859,0.00016438,2]
[380309464,1755652254909,-404.847502,0.00016438,2]
[380309465,1755652254926,-1156.606502,0.00016438,2]
[380309466,1755652254943,-173.770596,0.00016438,2]
[380309467,1755652254959,-1150.543606,0.00016438,2]
[380309468,1755652254975,-298.621859,0.00016438,2]
[380309469,1755652254992,-404.847502,0.00016438,2]
[380309470,1755652255009,-173.770596,0.00016438,2]
[380309471,1755652255026,-173.770596,0.00016438,2]
[380309472,1755652255043,-300.0,0.00016438,2]
[380309473,1755652255059,-1318.54,0.00016438,2]
[380309474,1755652255076,-151.0,0.00016438,2]
[380309475,1755652255091,-151.0,0.00016438,2]
[380309476,1755652255108,-151.0,0.00016438,2]
[380309477,1755652255125,-151.0,0.00016438,2]
[380309478,1755652255142,-151.0,0.00016438,2]
[380309479,1755652255158,-151.0,0.00016438,2]
[380309480,1755652255173,-151.0,0.00016438,2]
[380309481,1755652255190,-151.0,0.00016438,2]
[380309482,1755652255205,-151.0,0.00016438,2]
[380309483,1755652255220,-221.43,0.00016438,2]
[380309484,1755652255236,-2000.0,0.00016438,2]
[380309485,1755652255253,-600.0,0.00016438,2]
[380309486,1755652255271,-600.0,0.00016438,2]
[380309487,1755652255286,-600.0,0.00016438,2]
[380309488,1755652255302,-600.0,0.00016438,2]
[380309489,1755652255318,-600.0,0.00016438,2]
[380309490,1755652255334,-600.0,0.00016438,2]
[380309491,1755652255349,-600.0,0.00016438,2]
[380309492,1755652255366,-600.0,0.00016438,2]
[380309493,1755652255381,-600.0,0.00016438,2]
[380309494,1755652255397,-600.0,0.00016438,2]
[380309495,1755652255413,-600.0,0.00016438,2]
[380309496,1755652255429,-468.78,0.00016441,2]
[380309497,1755652255445,-798.74,0.00016441,2]
[380309498,1755652255460,-1597.23,0.00016441,2]
[380309499,1755652255476,-300.13833047,0.0001645,2]
[380309500,1755652255493,-455.77680434,0.0001645,2]
[380309501,1755652255508,-730.8410478,0.0001645,2]
[380309502,1755652255525,-1056.03,0.00016479,2]
[380309503,1755652255540,-150.0,0.0001655,2]
[380309504,1755652255556,-300.0,0.00016582,2]
[380309505,1755652255572,-352.75453895,0.000166,2]
[380309506,1755652255587,-322.6107,0.00016607,2]
[380309507,1755652255603,-160.0,0.00016607,2]
[380309508,1755652255618,-298.26089446,0.00016607,2]
[380309509,1755652255634,-829.61131053,0.00016608,2]
[380309510,1755652255649,-1000.0,0.00016624,2]
[380309511,1755652255665,-1425.0,0.00016671,2]
[380309512,1755652255681,-1425.0,0.00016676,2]
[380309513,1755652255697,-176.0,0.00016685,3]
[380309514,1755652255712,-5888.0,0.00016692,2]
[380309515,1755652255727,-5888.0,0.00016696,2]
[380309516,1755652255743,-1425.0,0.0001671,2]
[380309517,1755652255760,-150.0,0.00016712,2]
[380309518,1755652255776,-500.0,0.00016712,2]
[380309519,1755652255792,-3529.4,0.00016712,2]
[380309520,1755652255809,-226.64,0.00016712,2]
[380309521,1755652255824,-273.83,0.00016712,2]
[380309522,1755652255840,-408.27,0.00016712,2]
[380309523,1755652255857,-408.27,0.00016712,2]
[380309524,1755652255880,-408.27,0.00016712,2]
[380309525,1755652255895,-292.57,0.00016712,2]
[380309526,1755652255910,-300.0,0.00016727,2]
[380309527,1755652255924,-2000.0,0.00016728,2]
[380309528,1755652255939,-2000.0,0.00016728,2]
[380309529,1755652255955,-1714.68970863,0.00016728,2]
[380309530,1755652255969,-5888.0,0.00016749,2]
[380309531,1755652255984,-1425.0,0.00016753,2]
[380309532,1755652256006,-1056.03,0.00016753,2]
[380309533,1755652256024,-1425.0,0.00016761,2]
[380309534,1755652256039,-168.75726635,0.00016783,13]
[380309535,1755652256054,-5888.0,0.00016785,2]
[380309536,1755652256071,-5888.0,0.00016793,2]
[380309537,1755652256088,-5888.0,0.00016807,2]
[380309538,1755652256105,-1425.0,0.0001681,2]
[380309539,1755652256121,-1425.0,0.00016816,2]
[380309540,1755652256136,-204.29,0.00016816,2]
[380309541,1755652256152,-1425.0,0.00016818,2]
[380309542,1755652256167,-5888.0,0.00016855,2]
[380309543,1755652256182,-1425.0,0.0001693,2]
[380309544,1755652256197,-1425.0,0.0001697,2]
[380309545,1755652256212,-468.78,0.0001698,2]
[380309546,1755652256227,-468.78,0.0001698,2]
[380309547,1755652256243,-468.78,0.0001698,2]
[380309548,1755652256262,-798.74,0.0001698,2]
[380309549,1755652256277,-200.0,0.00016986,2]
[380309550,1755652256292,-500.0,0.00016986,2]
[380309551,1755652256306,-3529.4,0.00016986,2]
[380309552,1755652256322,-300.0,0.00016999,2]
[380309553,1755652256339,-300.0,0.00016999,2]
[380309554,1755652256354,-5888.0,0.00016999,2]
[380309555,1755652256369,-3000.0,0.00017,3]
[380309556,1755652256383,-4445.03844886,0.00017,3]
[380309557,1755652256398,-2966.65058409,0.00017,4]
[380309558,1755652256414,-50381.23802664,0.00017,2]
[380309559,1755652256430,-300.0,0.00017,2]
[380309560,1755652256445,-2710.23611,0.00017,2]
[380309561,1755652256460,-458.43483364,0.00017,7]
[380309562,1755652256475,-212.02104404,0.00017,7]
[380309563,1755652256490,-1000.0,0.0001701,2]
[380309564,1755652256504,-1056.03,0.00017027,2]
[380309565,1755652256519,-300.0,0.00017051,2]
[380309566,1755652256533,-300.0,0.00017051,2]
[380309567,1755652256548,-150.0,0.00017052,2]
[380309568,1755652256562,-1255.0,0.00017052,2]
[380309569,1755652256577,-198.869,0.00017052,2]
[380309570,1755652256591,-2029.0,0.00017052,2]
[380309571,1755652256606,-4152.0,0.00017052,2]
[380309572,1755652256620,-21497.0,0.00017052,2]
[380309573,1755652256634,-894.0,0.00017052,2]
[380309574,1755652256648,-300.0,0.00017056,2]
[380309575,1755652256662,-5888.0,0.00017057,2]
[380309576,1755652256677,-150.0,0.00017057,2]
[380309577,1755652256691,-150.0,0.00017061,2]
[380309578,1755652256704,-150.0,0.00017061,2]
[380309579,1755652256718,-1425.0,0.00017062,2]
[380309580,1755652256733,-772.38690198,0.00017063,2]
[380309581,1755652256747,-1425.0,0.00017067,2]
[380309582,1755652256761,-1425.0,0.00017071,2]
[380309583,1755652256775,-300.0,0.00017099,2]
[380309584,1755652256789,-300.0,0.00017099,2]
[380309585,1755652256804,-300.0,0.00017099,2]
[380309586,1755652256819,-500.0,0.000171,7]
[380309587,1755652256833,-500.0,0.000171,7]
[380309588,1755652256847,-500.0,0.000171,7]
[380309589,1755652256861,-401.79,0.000171,7]
[380309590,1755652256875,-500.0,0.000171,7]
[380309591,1755652256889,-500.0,0.000171,7]
[380309592,1755652256903,-500.0,0.000171,7]
[380309593,1755652256917,-500.0,0.000171,7]
[380309594,1755652256930,-500.0,0.000171,7]
[380309595,1755652256944,-500.0,0.000171,7]
[380309596,1755652256958,-500.0,0.000171,7]
[380309597,1755652256973,-500.0,0.000171,7]
[380309598,1755652256987,-500.0,0.000171,7]
[380309599,1755652257000,-500.0,0.000171,7]
[380309600,1755652257014,-500.0,0.000171,7]
[380309601,1755652257027,-500.0,0.000171,7]
[380309602,1755652257041,-500.0,0.000171,7]
[380309603,1755652257054,-500.0,0.000171,7]
[380309604,1755652257067,-500.0,0.000171,7]
[380309605,1755652257081,-500.0,0.000171,7]
[380309606,1755652257096,-500.0,0.000171,7]
[380309607,1755652257109,-500.0,0.000171,7]
[380309608,1755652257123,-500.0,0.000171,7]
[380309609,1755652257137,-500.0,0.000171,7]
[380309610,1755652257151,-500.0,0.000171,7]
[380309611,1755652257165,-500.0,0.000171,7]
[380309612,1755652257179,-500.0,0.000171,7]
[380309613,1755652257193,-500.0,0.000171,7]
[380309614,1755652257203,-500.0,0.000171,7]
[380309615,1755652257212,-350.83,0.000171,7]
[380309616,1755652257221,-500.0,0.000171,7]
[380309617,1755652257231,-500.57,0.000171,7]
[380309618,1755652257240,-500.0,0.000171,7]
[380309619,1755652257251,-500.0,0.000171,7]
[380309620,1755652257260,-500.0,0.000171,7]
[380309621,1755652257271,-500.0,0.000171,7]
[380309622,1755652257281,-500.0,0.000171,7]
[380309623,1755652257290,-500.0,0.000171,7]
[380309624,1755652257299,-500.0,0.000171,7]
[380309625,1755652257308,-500.0,0.000171,7]
[380309626,1755652257317,-500.0,0.000171,7]
[380309627,1755652257326,-500.0,0.000171,7]
[380309628,1755652257335,-500.0,0.000171,7]
[380309629,1755652257344,-500.0,0.000171,7]
[380309630,1755652257353,-500.0,0.000171,7]
[380309631,1755652258010,-500.0,0.000171,7]
[380309632,1755652258043,-500.0,0.000171,7]
[380309633,1755652258076,-500.0,0.000171,7]
[380309634,1755652258114,-500.0,0.000171,7]
[380309635,1755652258126,-500.0,0.000171,7]
[380309636,1755652258134,-500.0,0.000171,7]
[380309637,1755652258143,-500.0,0.000171,7]
[380309638,1755652258152,-500.0,0.000171,7]
[380309639,1755652258161,-500.0,0.000171,7]
[380309640,1755652258170,-500.0,0.000171,7]
[380309641,1755652258179,-500.0,0.000171,7]
[380309642,1755652258188,-500.0,0.000171,7]
[380309643,1755652258198,-500.0,0.000171,7]
[380309644,1755652258207,-500.0,0.000171,7]
[380309645,1755652258216,-500.0,0.000171,7]
[380309646,1755652258225,-500.0,0.000171,7]
[380309647,1755652258236,-500.0,0.000171,7]
[380309648,1755652258248,-500.0,0.000171,7]
[380309649,1755652258260,-500.0,0.000171,7]
[380309650,1755652258269,-500.0,0.000171,7]
[380309651,1755652258280,-500.0,0.000171,7]
[380309652,1755652258289,-500.0,0.000171,7]
[380309653,1755652258301,-500.0,0.000171,7]
[380309654,1755652258311,-500.0,0.000171,7]
[380309655,1755652258321,-500.0,0.000171,7]
[380309656,1755652258335,-500.0,0.000171,7]
[380309657,1755652258345,-475.36,0.000171,7]
[380309658,1755652258356,-500.0,0.000171,7]
[380309659,1755652258365,-458.43483364,0.000171,7]
[380309660,1755652258374,-5000.0,0.000171,2]
[380309661,1755652258382,-212.02104404,0.000171,7]
[380309662,1755652258391,-272.87847079,0.00017105,2]
[380309663,1755652258401,-150.0,0.0001711,2]
[380309664,1755652258411,-150.00049366,0.00017114,2]
[380309665,1755652258420,-300.0,0.00017122,2]
[380309666,1755652258429,-151.0,0.00017123,2]
[380309667,1755652258438,-151.0,0.00017123,2]
[380309668,1755652258447,-213.75734,0.00017123,2]
[380309669,1755652258456,-213.75734,0.00017123,2]
[380309670,1755652258466,-170.572615,0.00017123,2]
[380309671,1755652258475,-213.75734,0.00017123,2]
[380309672,1755652258485,-170.572615,0.00017123,2]
[380309673,1755652258494,-213.75734,0.00017123,2]
[380309674,1755652258504,-170.572615,0.00017123,2]
[380309675,1755652258513,-413.879693,0.00017123,2]
[380309676,1755652258523,-235.218043,0.00017123,2]
[380309677,1755652258532,-413.879693,0.00017123,2]
[380309678,1755652258542,-170.572615,0.00017123,2]
[380309679,1755652258552,-413.879693,0.00017123,2]
[380309680,1755652258561,-413.879693,0.00017123,2]
[380309681,1755652258570,-482.568323,0.00017123,2]
[380309682,1755652258579,-482.568323,0.00017123,2]
[380309683,1755652258588,-482.568323,0.00017123,2]
[380309684,1755652258598,-482.568323,0.00017123,2]
[380309685,1755652258607,-151.0,0.00017123,2]
[380309686,1755652258616,-151.0,0.00017123,2]
[380309687,1755652258625,-151.0,0.00017123,2]
[380309688,1755652258634,-200.0,0.00017123,2]
[380309689,1755652258643,-151.0,0.00017123,2]
[380309690,1755652258653,-200.0,0.00017123,2]
[380309691,1755652258662,-200.0,0.00017123,2]
[380309692,1755652258671,-200.0,0.00017123,2]
[380309693,1755652258680,-200.0,0.00017123,2]
[380309694,1755652258689,-200.0,0.00017123,2]
[380309695,1755652258699,-200.0,0.00017123,2]
[380309696,1755652258708,-200.0,0.00017123,2]
[380309697,1755652258717,-200.0,0.00017123,2]
[380309698,1755652258726,-200.0,0.00017123,2]
[380309699,1755652258735,-200.0,0.00017123,2]
[380309700,1755652258744,-200.0,0.00017123,2]
[380309701,1755652258753,-161.605039,0.00017123,2]
[380309702,1755652258762,-200.0,0.00017123,2]
[380309703,1755652258773,-200.0,0.00017123,2]
[380309704,1755652258783,-200.0,0.00017123,2]
[380309705,1755652258793,-161.605039,0.00017123,2]
[380309706,1755652258802,-200.0,0.00017123,2]
[380309707,1755652258811,-151.0,0.00017123,2]
[380309708,1755652258821,-200.0,0.00017123,2]
[380309709,1755652258830,-200.0,0.00017123,2]
[380309710,1755652258839,-200.0,0.00017123,2]
[380309711,1755652258849,-161.605039,0.00017123,2]
[380309712,1755652258858,-200.0,0.00017123,2]
[380309713,1755652258867,-161.605039,0.00017123,2]
[380309714,1755652258877,-200.0,0.00017123,2]
[380309715,1755652258886,-200.0,0.00017123,2]
[380309716,1755652258895,-200.0,0.00017123,2]
[380309717,1755652258905,-200.0,0.00017123,2]
[380309718,1755652258914,-200.0,0.00017123,2]
[380309719,1755652258923,-200.0,0.00017123,2]
[380309720,1755652258932,-200.0,0.00017123,2]
[380309721,1755652258942,-200.0,0.00017123,2]
[380309722,1755652258951,-200.0,0.00017123,2]
[380309723,1755652258960,-200.0,0.00017123,2]
[380309724,1755652258969,-200.0,0.00017123,2]
[380309725,1755652258978,-200.0,0.00017123,2]
[380309726,1755652258987,-200.0,0.00017123,2]
[380309727,1755652258997,-226.135699,0.00017123,2]
[380309728,1755652259006,-1425.0,0.00017124,2]
[380309729,1755652259016,-1000.0,0.00017143,2]
[380309730,1755652259027,-150.0,0.00017146,2]
[380309731,1755652259037,-300.0,0.00017159,2]
[380309732,1755652259046,-300.0,0.00017159,2]
[380309733,1755652259055,-150.0,0.00017163,2]
[380309734,1755652259064,-1425.0,0.00017169,2]
[380309735,1755652259074,-1000.0,0.00017172,2]
[380309736,1755652259083,-150.0,0.00017189,2]
[380309737,1755652259092,-300.0,0.00017194,2]
[380309738,1755652259102,-6342.139717,0.00017195,2]
[380309739,1755652259111,-1425.0,0.00017199,2]
[380309740,1755652259120,-4247.0,0.00017206,2]
[380309741,1755652259129,-1425.0,0.00017209,2]
[380309742,1755652259138,-278.0,0.0001721,2]
[380309743,1755652259148,-150.0,0.00017216,2]
[380309744,1755652259157,-150.0,0.00017218,2]
[380309745,1755652259166,-1456.0,0.00017231,2]
[380309746,1755652259175,-539.18,0.00017233,2]
[380309747,1755652259184,-500.0,0.00017238,2]
[380309748,1755652259194,-500.0,0.00017238,2]
[380309749,1755652259203,-500.0,0.00017238,2]
[380309750,1755652259211,-163.79936004,0.00017238,2]
[380309751,1755652259221,-500.0,0.00017238,2]
[380309752,1755652259230,-500.0,0.00017238,2]
[380309753,1755652259239,-500.0,0.00017238,2]
[380309754,1755652259249,-500.0,0.00017238,2]
[380309755,1755652259263,-500.0,0.00017238,2]
[380309756,1755652259274,-160.0183781,0.00017238,2]
[380309757,1755652259283,-500.0,0.00017238,2]
[380309758,1755652259292,-500.0,0.00017238,2]
[380309759,1755652259301,-500.0,0.00017238,2]
[380309760,1755652259312,-200.94901356,0.00017238,2]
[380309761,1755652259322,-500.0,0.00017238,2]
[380309762,1755652259332,-500.0,0.00017238,2]
[380309763,1755652259342,-500.0,0.00017238,2]
[380309764,1755652259351,-500.0,0.00017238,2]
[380309765,1755652259361,-500.0,0.00017238,2]
[380309766,1755652259370,-500.0,0.00017238,2]
[380309767,1755652259379,-500.0,0.00017238,2]
[380309768,1755652259388,-500.0,0.00017238,2]
[380309769,1755652259397,-150.0,0.00017245,2]
[380309770,1755652259406,-150.0,0.00017256,2]
[380309771,1755652259415,-500.0,0.0001726,2]
[380309772,1755652259424,-3529.4,0.0001726,2]
[380309773,1755652259434,-150.0,0.00017268,2]
[380309774,1755652259443,-300.0,0.00017275,2]
[380309775,1755652259453,-2500.0,0.00017276,2]
[380309776,1755652259462,-2500.0,0.00017276,2]
[380309777,1755652259471,-300.0,0.00017278,2]
[380309778,1755652259480,-5888.0,0.00017279,2]
[380309779,1755652259489,-150.0,0.00017288,2]
[380309780,1755652259498,-150.0,0.00017295,2]
[380309781,1755652259507,-1425.0,0.00017296,2]
[380309782,1755652259516,-1000.0,0.000173,2]
[380309783,1755652259527,-1056.1846451,0.00017301,2]
[380309784,1755652259536,-4247.0,0.00017313,2]
[380309785,1755652259546,-1425.0,0.00017319,2]
[380309786,1755652259557,-150.0,0.00017321,2]
[380309787,1755652259567,-500.0,0.00017352,2]
[380309788,1755652259575,-500.0,0.00017352,2]
[380309789,1755652259585,-500.0,0.00017352,2]
[380309790,1755652259594,-500.0,0.00017352,2]
[380309791,1755652259603,-500.0,0.00017352,2]
[380309792,1755652259612,-160.09526249,0.00017352,2]
[380309793,1755652259621,-500.0,0.00017352,2]
[380309794,1755652259630,-521.72062041,0.00017352,2]
[380309795,1755652259640,-505.80945595,0.00017352,2]
[380309796,1755652259649,-1425.0,0.00017353,2]
[380309797,1755652259658,-1425.0,0.00017355,2]
[380309798,1755652259667,-150.0,0.00017357,2]
[380309799,1755652259677,-150.0,0.00017358,2]
[380309800,1755652259686,-326.0,0.00017363,2]
[380309801,1755652259695,-150.0,0.00017364,2]
[380309802,1755652259704,-150.0,0.00017374,2]
[380309803,1755652259714,-5888.0,0.00017379,2]
[380309804,1755652259722,-150.0,0.00017393,2]
[380309805,1755652259731,-5888.0,0.00017397,2]
[380309806,1755652259740,-150.0,0.00017417,2]
[380309807,1755652259750,-150.0,0.00017427,2]
[380309808,1755652259759,-1000.0,0.00017451,2]
[380309809,1755652259768,-5888.0,0.00017457,2]
[380309810,1755652259779,-2500.0,0.00017465,3]
[380309811,1755652259788,-500.0,0.00017473,2]
[380309812,1755652259797,-555.81335514,0.00017473,2]
[380309813,1755652259806,-2500.0,0.00017474,3]
[380309814,1755652259816,-809.46174385,0.00017476,2]
[380309815,1755652259825,-150.0,0.00017479,2]
[380309816,1755652259834,-2500.0,0.00017482,3]
[380309817,1755652259844,-3267.8210922,0.00017484,2]
[380309818,1755652259853,-1425.0,0.00017485,2]
[380309819,1755652259863,-300.0,0.00017489,2]
[380309820,1755652259872,-199.761807,0.0001749,2]
[380309821,1755652259890,-199.761807,0.0001749,2]
[380309822,1755652259910,-199.761807,0.0001749,2]
[380309823,1755652259923,-199.761807,0.0001749,2]
[380309824,1755652259932,-151.0,0.0001749,2]
[380309825,1755652259942,-151.0,0.0001749,2]
[380309826,1755652259951,-151.0,0.0001749,2]
[380309827,1755652259960,-151.0,0.0001749,2]
[380309828,1755652259970,-151.0,0.0001749,2]
[380309829,1755652259979,-151.0,0.0001749,2]
[380309830,1755652259988,-151.0,0.0001749,2]
[380309831,1755652259997,-221.36426,0.0001749,2]
[380309832,1755652260007,-151.0,0.0001749,2]
[380309833,1755652260016,-2500.0,0.00017491,3]
[380309834,1755652260027,-300.0,0.00017499,2]
[380309835,1755652260036,-300.0,0.00017499,2]
[380309836,1755652260046,-20000.0,0.000175,2]
[380309837,1755652260056,-293047.07,0.000175,2]
[380309838,1755652260066,-2500.0,0.000175,3]
[380309839,1755652260076,-151.515839,0.000175,2]
[380309840,1755652260086,-151.0,0.000175,2]
[380309841,1755652260095,-151.0,0.000175,2]
[380309842,1755652260104,-151.0,0.000175,2]
[380309843,1755652260113,-164.516532,0.000175,2]
[380309844,1755652260123,-164.516532,0.000175,2]
[380309845,1755652260133,-164.516532,0.000175,2]
[380309846,1755652260142,-164.516532,0.000175,2]
[380309847,1755652260152,-151.0,0.000175,2]
[380309848,1755652260161,-151.0,0.000175,2]
[380309849,1755652260171,-151.0,0.000175,2]
[380309850,1755652260180,-151.0,0.000175,2]
[380309851,1755652260190,-151.0,0.000175,2]
[380309852,1755652260199,-288.338433,0.000175,2]
[380309853,1755652260209,-352.476712,0.000175,2]
[380309854,1755652260218,-352.476712,0.000175,2]
[380309855,1755652260228,-352.476712,0.000175,2]
[380309856,1755652260237,-352.476712,0.000175,2]
[380309857,1755652260257,-1487.597972,0.000175,2]
[380309858,1755652260280,-151.0,0.000175,2]
[380309859,1755652260297,-1487.597972,0.000175,2]
[380309860,1755652260307,-151.0,0.000175,2]
[380309861,1755652260316,-1487.597972,0.000175,2]
[380309862,1755652260325,-151.0,0.000175,2]
[380309863,1755652260335,-151.0,0.000175,2]
[380309864,1755652260344,-1487.597972,0.000175,2]
[380309865,1755652260354,-344.908136,0.000175,2]
[380309866,1755652260363,-151.0,0.000175,2]
[380309867,1755652260373,-151.0,0.000175,2]
[380309868,1755652260382,-174.377149,0.000175,2]
[380309869,1755652260391,-174.377149,0.000175,2]
[380309870,1755652260400,-151.0,0.000175,2]
[380309871,1755652260409,-151.0,0.000175,2]
[380309872,1755652260420,-151.0,0.000175,2]
[380309873,1755652260429,-344.908136,0.000175,2]
[380309874,1755652260439,-174.377149,0.000175,2]
[380309875,1755652260448,-344.908136,0.000175,2]
[380309876,1755652260457,-174.377149,0.000175,2]
[380309877,1755652260468,-151.0,0.000175,2]
[380309878,1755652260477,-151.0,0.000175,2]
[380309879,1755652260487,-344.908136,0.000175,2]
[380309880,1755652260496,-308.578771,0.000175,2]
[380309881,1755652260505,-308.578771,0.000175,2]
[380309882,1755652260514,-308.578771,0.000175,2]
[380309883,1755652260526,-308.578771,0.000175,2]
[380309884,1755652260536,-151.0,0.000175,2]
[380309885,1755652260545,-153.061572,0.000175,2]
[380309886,1755652260555,-151.0,0.000175,2]
[380309887,1755652260564,-178.082281,0.000175,2]
[380309888,1755652260574,-178.082281,0.000175,2]
[380309889,1755652260584,-178.082281,0.000175,2]
[380309890,1755652260593,-178.082281,0.000175,2]
[380309891,1755652260602,-468.325856,0.000175,2]
[380309892,1755652260611,-468.325856,0.000175,2]
[380309893,1755652260621,-468.325856,0.000175,2]
[380309894,1755652260631,-862.797813,0.000175,2]
[380309895,1755652260640,-151.0,0.000175,2]
[380309896,1755652260650,-862.797813,0.000175,2]
[380309897,1755652260660,-151.0,0.000175,2]